{"text_format":"1","workbook":"xlsx","n_sheets":3,"sheets":["ورقة1","مصروفات","MyDate"],"not_rendered":{"charts":0,"images":0,"macros":1,"external_links":0,"defined_names":0,"comments":0,"pivot_tables":0},"unopened":[],"bounds":{"document_bytes":16777216,"sheet_cells":100000,"rows_first":2000,"rows_last":500,"rows_between":2000,"halvings":0,"cell_chars":16384,"cell_head_chars":4096},"cells_cut":0,"cells_raw":0,"read":"whole","date_system":"1900"}

{"sheet":"ورقة1","index":0,"n_rows":17,"n_cols":257,"rows_kept":17,"cut":false,"hidden":false,"merged":[]}
[null,null,null,null,null,null,null,null,null,null,null,null,null,null,null,null,null,null,null,null,null,null,null,null,null,null,null,null,null,null,null,null,null,null,null,null,null,null,null,null,null,null,null,null,null,null,null,null,null,null,null,null,null,null,null,null,null,null,null,null,null,null,null,null,null,null,null,null,null,null,null,null,null,null,null,null,null,null,null,null,null,null,null,null,null,null,null,null,null,null,null,null,null,null,null,null,null,null,null,null,null,null,null,null,null,null,null,null,null,null,null,null,null,null,null,null,null,null,null,null,null,null,null,null,null,null,null,null,null,null,null,null,null,null,null,null,null,null,null,null,null,null,null,null,null,null,null,null,null,null,null,null,null,null,null,null,null,null,null,null,null,null,null,null,null,null,null,null,null,null,null,null,null,null,null,null,null,null,null,null,null,null,null,null,null,null,null,null,null,null,null,null,null,null,null,null,null,null,null,null,null,null,null,null,null,null,null,null,null,null,null,null,null,null,null,null,null,null,null,null,null,null,null,null,null,null,null,null,null,null,null,null,null,null,null,null,null,null,null,null,null,null,null,null,null,null,null,null,null,null,null,null,null,null,null,null,"الدعم الفني"]
[null,"اسم المورد","التاريخ","رقم الاذن","الجهة"]
[null,null,null,{"$f":"IFERROR(LOOKUP(9879898789789,مصروفات!J:J,مصروفات!J:J)+1,\"\")","v":64}]
[null,null,null,null,null,"ادخال مصروفات"]
[]
[null,"التاريخ","اسم المورد","بند المصروف","بيان المصروف","الجهه","الكمية","السعر","خصم","القيمة","الاذن","ملاحظات"]
[null,{"$f":"IF(D7=\"\",\"\",$C$3)","v":""},{"$f":"IF(D7=\"\",\"\",$B$3)","v":""},null,null,{"$f":"IF(D7=\"\",\"\",$E$3)","v":""},null,null,null,{"$f":"IF(D7=\"\",\"\",(G7*H7)-I7)","v":""},{"$f":"IF(D7=\"\",\"\",$D$3)","v":""}]
[null,"",{"$f":"IF(D8=\"\",\"\",$B$3)","v":""},null,null,{"$f":"IF(D8=\"\",\"\",$E$3)","v":""},null,null,null,{"$f":"IF(D8=\"\",\"\",(G8*H8)-I8)","v":""},{"$f":"IF(D8=\"\",\"\",$D$3)","v":""}]
[null,"",{"$f":"IF(D9=\"\",\"\",$B$3)","v":""},null,null,"",null,null,null,"",""]
[null,"","",null,null,"",null,null,null,"",""]
[null,"","",null,null,"",null,null,null,"",""]
[null,"","",null,null,"",null,null,null,"",""]
[null,"","",null,null,"",null,null,null,"",""]
[null,"","",null,null,"",null,null,null,"",""]
[null,"","",null,null,"",null,null,null,"",""]
[null,"","",null,null,"",null,null,null,"",""]
[null,"","",null,null,"",null,null,null,"",""]

{"sheet":"مصروفات","index":1,"n_rows":28,"n_cols":11,"rows_kept":28,"cut":false,"hidden":false,"merged":[[0,1,2,4]]}
[null,"بيانات مصروفات"]
[]
[]
["التاريخ","اسم المورد","بند المصروف","بيان المصروف","الجهه","الكمية","السعر","خصم","القيمة","الاذن","ملاحظات"]
["2020-01-24","hou","a","b","sohaj",100,10,50,950,60,"d"]
["2020-10-05","محمود",1,2,"مصروفات",1,1,0,1,61,"-"]
["2020-10-05","محمود",2,3,"مصروفات",2,3,0,6,62,"-"]
["2020-10-05","محمود",4,5,"مصروفات",4,5,0,20,63,"-"]
[]
[]
[]
[]
[]
[]
[]
[]
[]
[]
[]
[null,"",""]
[null,"",""]
[null,"",""]
[null,"",""]
[null,"",""]
[null,"",""]
[null,"",""]
[null,"",""]
[null,"",""]

{"sheet":"MyDate","index":2,"n_rows":8,"n_cols":15,"rows_kept":8,"cut":false,"hidden":false,"merged":[]}
[]
[]
["اسم المستخدم","الباسورد","اخر مستخدم","صلاحية اضافة مستخدم","ترحيل مصروفات","مصروفات","MyDate"]
["الدعم الفني",1234,"الدعم الفني  2020/01/18  13:44","مشاهدة وتعديل","مشاهدة وتعديل","مشاهدة وتعديل","مشاهدة وتعديل","مشاهدة وتعديل","مشاهدة وتعديل","مشاهدة وتعديل","مشاهدة وتعديل","مشاهدة وتعديل","مشاهدة وتعديل","مشاهدة وتعديل","مشاهدة وتعديل"]
["admin",1234,"الدعم الفني  2020/01/18  14:02","مخفي","مشاهدة فقط","مخفي","مخفي","مخفي","مخفي","مخفي","مشاهدة فقط","مشاهدة وتعديل","مخفي"]
[null,null,"الدعم الفني  2020/01/19  12:55"]
[null,null,"الدعم الفني  2020/01/24  16:39"]
[null,null,"الدعم الفني  2020/01/24  16:46"]